fUST/lending_fUST_20250208
["ID","MTS","AMOUNT","RATE_DAILY","PERIOD"]
[352215301,1739002242283,-500.0,0.00011095,2]
[352215302,1739002242293,-500.0,0.00011232,2]
[352215303,1739002242302,-500.0,0.00011232,2]
[352215304,1739002242312,-500.0,0.00011232,2]
[352215305,1739002242321,-500.0,0.00011232,2]
[352215306,1739002242330,-500.0,0.00011232,2]
[352215307,1739002242340,-500.0,0.00011232,2]
[352215308,1739002242349,-500.0,0.00011232,2]
[352215309,1739002242358,-500.0,0.00011232,2]
[352215310,1739002242367,-500.0,0.00011232,2]
[352215311,1739002242377,-500.0,0.00011232,2]
[352215312,1739002242386,-500.0,0.00011232,2]
[352215313,1739002242396,-500.0,0.00011232,2]
[352215314,1739002242405,-500.0,0.00011232,2]
[352215315,1739002242414,-500.0,0.00011232,2]
[352215316,1739002242423,-500.0,0.00011232,2]
[352215317,1739002242432,-500.0,0.00011232,2]
[352215318,1739002242442,-500.0,0.00011232,2]
[352215319,1739002242452,-500.0,0.00011232,2]
[352215320,1739002242461,-500.0,0.00011232,2]
[352215321,1739002242470,-500.0,0.00011232,2]
[352215322,1739002242479,-500.0,0.00011232,2]
[352215323,1739002242490,-500.0,0.00011232,2]
[352215324,1739002242500,-500.0,0.00011232,2]
[352215325,1739002242511,-500.0,0.00011232,2]
[352215326,1739002242520,-500.0,0.00011232,2]
[352215327,1739002242529,-500.0,0.00011232,2]
[352215328,1739002242538,-500.0,0.00011232,2]
[352215329,1739002242547,-500.0,0.00011232,2]
[352215330,1739002242556,-500.0,0.00011232,2]
[352215331,1739002242566,-500.0,0.00011232,2]
[352215332,1739002242575,-500.0,0.00011232,2]
[352215333,1739002242584,-500.0,0.00011232,2]
[352215334,1739002242595,-500.0,0.00011232,2]
[352215335,1739002242605,-680.41,0.00011232,2]
[352215336,1739002242615,-632.19,0.00011232,2]
[352215337,1739002242624,-500.0,0.00011232,2]
[352215338,1739002242633,-597.33,0.00011232,2]
[352215339,1739002242642,-646.74235992,0.00011232,2]
[352215340,1739002242651,-500.0,0.00011232,2]
[352215341,1739002242660,-500.0,0.00011232,2]
[352215342,1739002242669,-334.99089184,0.00011232,2]
[352215343,1739002242681,-500.0,0.00011232,2]
[352215344,1739002242691,-500.0,0.00011232,2]
[352215345,1739002242700,-500.0,0.00011232,2]
[352215346,1739002242710,-500.0,0.00011232,2]
[352215347,1739002242722,-500.0,0.00011232,2]
[352215348,1739002242731,-500.0,0.00011232,2]
[352215349,1739002242755,-500.0,0.00011232,2]
[352215350,1739002242764,-1119.43,0.00011232,2]
[352215351,1739002242773,-500.0,0.00011232,2]
[352215352,1739002242783,-500.0,0.00011232,2]
[352215353,1739002242791,-1131.56,0.00011232,2]
[352215354,1739002242801,-500.0,0.00011232,2]
[352215355,1739002242810,-500.0,0.00011232,2]
[352215356,1739002242819,-451.45202603,0.00011232,2]
[352215357,1739002242828,-500.0,0.00011232,2]
[352215358,1739002242847,-500.0,0.00011232,2]
[352215359,1739002242856,-500.0,0.00011232,2]
[352215360,1739002242865,-812.23,0.00011232,2]
[352215361,1739002242874,-500.0,0.00011232,2]
[352215362,1739002242883,-500.0,0.00011232,2]
[352215363,1739002242892,-621.82,0.00011232,2]
[352215364,1739002242901,-500.0,0.00011232,2]
[352215365,1739002242910,-500.0,0.00011232,2]
[352215366,1739002242919,-500.0,0.00011232,2]
[352215367,1739002242928,-500.0,0.00011232,2]
[352215368,1739002242937,-500.0,0.00011232,2]
[352215369,1739002242946,-295.1097495,0.00011232,2]
[352215370,1739002242955,-500.0,0.00011232,2]
[352215371,1739002242964,-189.52594847,0.00011232,2]
[352215372,1739002242974,-500.0,0.00011232,2]
[352215373,1739002242983,-1366.73,0.00011232,2]
[352215374,1739002242992,-500.0,0.00011232,2]
[352215375,1739002243001,-500.0,0.00011232,2]
[352215376,1739002243010,-500.0,0.00011232,2]
[352215377,1739002243019,-500.0,0.00011232,2]
[352215379,1739002243029,-500.0,0.00011232,2]
[352215381,1739002243038,-500.0,0.00011232,2]
[352215383,1739002243047,-500.0,0.00011232,2]
[352215385,1739002243057,-500.0,0.00011232,2]
[352215387,1739002243067,-553.16,0.00011232,2]
[352215389,1739002243076,-609.89,0.00011232,2]
[352215391,1739002243086,-500.0,0.00011232,2]
[352215392,1739002243095,-500.0,0.00011232,2]
[352215394,1739002243104,-500.0,0.00011232,2]
[352215396,1739002243114,-262.71037777,0.00011232,2]
[352215398,1739002243123,-780.9,0.00011232,2]
[352215400,1739002243132,-536.89,0.00011232,2]
[352215402,1739002243141,-500.0,0.00011232,2]
[352215405,1739002243151,-500.0,0.00011232,2]
[352215408,1739002243160,-17258.78,0.00011232,2]
[352215411,1739002243170,-516.49,0.00011232,2]
[352215414,1739002243179,-3152.89,0.00011232,2]
[352215417,1739002243190,-500.0,0.00011232,2]
[352215419,1739002243199,-1098.98,0.00011232,2]
[352215423,1739002243209,-500.0,0.00011232,2]
[352215426,1739002243219,-500.0,0.00011232,2]
[352215428,1739002243227,-500.0,0.00011232,2]
[352215430,1739002243236,-868.87,0.00011232,2]
[352215435,1739002243246,-500.0,0.00011232,2]
[352215437,1739002243256,-500.0,0.00011232,2]
[352215441,1739002243266,-500.0,0.00011232,2]
[352215445,1739002243277,-577.01,0.00011232,2]
[352215448,1739002243287,-357.85706611,0.00011232,2]
[352215451,1739002243297,-500.0,0.00011232,2]
[352215454,1739002243307,-500.0,0.00011232,2]
[352215457,1739002243316,-500.0,0.00011232,2]
[352215460,1739002243324,-1248.14,0.00011232,2]
[352215463,1739002243334,-2467.84,0.00011232,2]
[352215466,1739002243344,-500.0,0.00011232,2]
[352215468,1739002243354,-500.0,0.00011232,2]
[352215471,1739002243363,-500.0,0.00011232,2]
[352215474,1739002243372,-500.0,0.00011232,2]
[352215475,1739002243382,-500.0,0.00011232,2]
[352215476,1739002243391,-500.0,0.00011232,2]
[352215477,1739002243400,-2721.28,0.00011232,2]
[352215479,1739002243410,-500.0,0.00011232,2]
[352215482,1739002243420,-1343.26,0.00011232,2]
[352215485,1739002243429,-500.0,0.00011232,2]
[352215488,1739002243440,-500.0,0.00011232,2]
[352215490,1739002243449,-941.48,0.00011232,2]
[352215492,1739002243460,-636.83,0.00011232,2]
[352215494,1739002243470,-500.0,0.00011232,2]
[352215495,1739002243480,-328.1730189,0.00011232,2]
[352215496,1739002243491,-500.0,0.00011232,2]
[352215497,1739002243501,-500.0,0.00011232,2]
[352215498,1739002243510,-500.0,0.00011232,2]
[352215499,1739002243519,-500.0,0.00011232,2]
[352215500,1739002243528,-500.0,0.00011232,2]
[352215501,1739002243537,-861.13,0.00011232,2]
[352215502,1739002243547,-940.08,0.00011232,2]
[352215503,1739002243556,-2160.96,0.00011232,2]
[352215504,1739002243565,-500.0,0.00011232,2]
[352215505,1739002243574,-500.0,0.00011232,2]
[352215507,1739002243583,-500.0,0.00011232,2]
[352215508,1739002243592,-500.0,0.00011232,2]
[352215509,1739002243603,-1257.1,0.00011232,2]
[352215510,1739002243612,-1326.92,0.00011232,2]
[352215511,1739002243622,-500.0,0.00011232,2]
[352215513,1739002243631,-36551.32,0.00011232,2]
[352215515,1739002243642,-500.0,0.00011232,2]
[352215517,1739002243651,-10819.44,0.00011232,2]
[352215519,1739002243661,-1216.12,0.00011232,2]
[352215521,1739002243670,-500.0,0.00011232,2]
[352215523,1739002243683,-1004.16,0.00011232,2]
[352215525,1739002243692,-500.0,0.00011232,2]
[352215527,1739002243701,-500.0,0.00011232,2]
[352215529,1739002243710,-500.0,0.00011232,2]
[352215530,1739002243719,-500.0,0.00011232,2]
[352215532,1739002243728,-5269.89,0.00011232,2]
[352215533,1739002243738,-2264.18,0.00011232,2]
[352215534,1739002243748,-797.18,0.00011232,2]
[352215535,1739002243759,-500.0,0.00011232,2]
[352215536,1739002243769,-1712.87,0.00011232,2]
[352215537,1739002243778,-500.0,0.00011232,2]
[352215538,1739002243790,-500.0,0.00011232,2]
[352215539,1739002243800,-563.17,0.00011232,2]
[352215540,1739002243810,-971.61,0.00011232,2]
[352215541,1739002243820,-500.0,0.00011232,2]
[352215542,1739002243830,-177.59845825,0.00011232,2]
[352215543,1739002243840,-1593.28,0.00011232,2]
[352215544,1739002243851,-2771.28,0.00011232,2]
[352215545,1739002243861,-990.07,0.00011232,2]
[352215547,1739002243871,-500.0,0.00011232,2]
[352215549,1739002243884,-500.0,0.00011232,2]
[352215550,1739002243895,-500.0,0.00011232,2]
[352215551,1739002243906,-500.0,0.00011232,2]
[352215552,1739002243917,-1060.19,0.00011232,2]
[352215553,1739002243927,-500.0,0.00011232,2]
[352215554,1739002243938,-500.0,0.00011232,2]
[352215555,1739002243948,-1133.34,0.00011232,2]
[352215556,1739002243958,-584.28,0.00011232,2]
[352215557,1739002243968,-500.0,0.00011232,2]
[352215558,1739002243978,-2995.22,0.00011232,2]
[352215559,1739002243987,-500.0,0.00011232,2]
[352215560,1739002243996,-500.0,0.00011232,2]
[352215561,1739002244006,-500.0,0.00011232,2]
[352215562,1739002244015,-2177.95,0.00011232,2]
[352215563,1739002244024,-1209.83,0.00011232,2]
[352215564,1739002244034,-500.0,0.00011232,2]
[352215565,1739002244043,-556.13545161,0.00011232,2]
[352215566,1739002244052,-500.0,0.00011232,2]
[352215567,1739002244062,-500.0,0.00011232,2]
[352215568,1739002244072,-2956.32,0.00011232,2]
[352215569,1739002244081,-500.0,0.00011232,2]
[352215570,1739002244090,-500.0,0.00011232,2]
[352215571,1739002244099,-1056.59,0.00011232,2]
[352215572,1739002244111,-500.0,0.00011232,2]
[352215573,1739002244120,-504.76,0.00011232,2]
[352215574,1739002244130,-500.0,0.00011232,2]
[352215575,1739002244140,-500.0,0.00011232,2]
[352215576,1739002244150,-554.8,0.00011232,2]
[352215577,1739002244159,-1012.06,0.00011232,2]
[352215578,1739002244170,-500.0,0.00011232,2]
[352215579,1739002244179,-500.0,0.00011232,2]
[352215580,1739002244188,-500.0,0.00011232,2]
[352215581,1739002244197,-500.0,0.00011232,2]
[352215582,1739002244206,-218.19091382,0.00011269,2]
[352215583,1739002244216,-439.80632446,0.00011369,2]
[352215584,1739002244225,-500.0,0.00011369,2]
[352215585,1739002244234,-500.0,0.00011369,2]
[352215586,1739002244244,-588.64550532,0.00011369,2]
[352215587,1739002244254,-500.0,0.00011369,2]
[352215588,1739002244264,-500.0,0.00011369,2]
[352215589,1739002244274,-500.0,0.00011369,2]
[352215590,1739002244283,-500.0,0.00011369,2]
[352215591,1739002244292,-500.0,0.00011369,2]
[352215592,1739002244302,-500.0,0.00011369,2]
[352215593,1739002244312,-500.0,0.00011369,2]
[352215594,1739002244322,-425.23565614,0.00011369,2]
[352215595,1739002244333,-460.0,0.00011369,2]
[352215596,1739002244343,-500.0,0.00011369,2]
[352215597,1739002244352,-500.0,0.00011369,2]
[352215598,1739002244361,-500.0,0.00011369,2]
[352215599,1739002244370,-500.0,0.00011369,2]
[352215600,1739002244380,-500.0,0.00011369,2]
[352215601,1739002244390,-500.0,0.00011369,2]
[352215602,1739002244402,-500.0,0.00011369,2]
[352215603,1739002244411,-500.0,0.00011369,2]
[352215604,1739002244421,-500.0,0.00011369,2]
[352215605,1739002244431,-500.0,0.00011369,2]
[352215606,1739002244440,-500.0,0.00011369,2]
[352215607,1739002244451,-500.0,0.00011369,2]
[352215608,1739002244462,-500.0,0.00011369,2]
[352215609,1739002244471,-500.0,0.00011369,2]
[352215610,1739002244481,-500.0,0.00011369,2]
[352215611,1739002244491,-500.0,0.00011369,2]
[352215612,1739002244502,-500.0,0.00011369,2]
[352215613,1739002244512,-500.0,0.00011369,2]
[352215614,1739002244523,-680.41,0.00011369,2]
[352215615,1739002244534,-632.19,0.00011369,2]
[352215616,1739002244543,-500.0,0.00011369,2]
[352215617,1739002244553,-597.33,0.00011369,2]
[352215618,1739002244564,-500.0,0.00011369,2]
[352215619,1739002244576,-500.0,0.00011369,2]
[352215620,1739002244586,-500.0,0.00011369,2]
[352215621,1739002244597,-500.0,0.00011369,2]
[352215622,1739002244606,-503.69824701,0.00011369,2]
[352215623,1739002244615,-500.0,0.00011369,2]
[352215624,1739002244625,-500.0,0.00011369,2]
[352215625,1739002244636,-500.0,0.00011369,2]
[352215626,1739002244647,-1119.43,0.00011369,2]
[352215627,1739002244655,-500.0,0.00011369,2]
[352215628,1739002244665,-500.0,0.00011369,2]
[352215629,1739002244674,-1131.56,0.00011369,2]
[352215630,1739002244687,-500.0,0.00011369,2]
[352215631,1739002244696,-500.0,0.00011369,2]
[352215632,1739002244705,-500.0,0.00011369,2]
[352215633,1739002244714,-500.0,0.00011369,2]
[352215634,1739002244724,-500.0,0.00011369,2]
[352215635,1739002244733,-812.23,0.00011369,2]
[352215636,1739002244742,-500.0,0.00011369,2]
[352215637,1739002244751,-500.0,0.00011369,2]
[352215638,1739002244760,-621.82,0.00011369,2]
[352215639,1739002244769,-500.0,0.00011369,2]
[352215640,1739002244778,-500.0,0.00011369,2]
[352215641,1739002244787,-500.0,0.00011369,2]
[352215642,1739002244795,-500.0,0.00011369,2]
[352215643,1739002244805,-500.0,0.00011369,2]
[352215644,1739002244814,-500.0,0.00011369,2]
[352215645,1739002244824,-500.0,0.00011369,2]
[352215646,1739002244833,-1366.73,0.00011369,2]
[352215647,1739002244843,-500.0,0.00011369,2]
[352215648,1739002244853,-500.0,0.00011369,2]
[352215649,1739002244863,-500.0,0.00011369,2]
[352215650,1739002244873,-500.0,0.00011369,2]
[352215651,1739002244884,-500.0,0.00011369,2]
[352215652,1739002244894,-500.0,0.00011369,2]
[352215653,1739002244904,-500.0,0.00011369,2]
[352215654,1739002244915,-500.0,0.00011369,2]
[352215655,1739002244925,-553.16,0.00011369,2]
[352215656,1739002244934,-609.89,0.00011369,2]
[352215657,1739002244943,-500.0,0.00011369,2]
[352215658,1739002244955,-500.0,0.00011369,2]
[352215659,1739002244964,-780.9,0.00011369,2]
[352215660,1739002244973,-536.89,0.00011369,2]
[352215661,1739002244983,-500.0,0.00011369,2]
[352215662,1739002244993,-500.0,0.00011369,2]
[352215663,1739002245002,-17258.78,0.00011369,2]
[352215664,1739002245012,-516.49,0.00011369,2]
[352215665,1739002245022,-3152.89,0.00011369,2]
[352215666,1739002245031,-500.0,0.00011369,2]
[352215667,1739002245043,-1098.98,0.00011369,2]
[352215668,1739002245052,-500.0,0.00011369,2]
[352215669,1739002245061,-500.0,0.00011369,2]
[352215670,1739002245071,-500.0,0.00011369,2]
[352215671,1739002245080,-868.87,0.00011369,2]
[352215672,1739002245089,-500.0,0.00011369,2]
[352215673,1739002245098,-500.0,0.00011369,2]
[352215674,1739002245108,-500.0,0.00011369,2]
[352215675,1739002245118,-577.01,0.00011369,2]
[352215676,1739002245128,-500.0,0.00011369,2]
[352215677,1739002245138,-194.99787331,0.00011369,2]
[352215678,1739002245149,-500.0,0.00011369,2]
[352215679,1739002245159,-1248.14,0.00011369,2]
[352215680,1739002245169,-2467.84,0.00011369,2]
[352215681,1739002245178,-500.0,0.00011369,2]
[352215682,1739002245188,-500.0,0.00011369,2]
[352215683,1739002245197,-500.0,0.00011369,2]
[352215684,1739002245206,-500.0,0.00011369,2]
[352215685,1739002245216,-500.0,0.00011369,2]
[352215686,1739002245228,-500.0,0.00011369,2]
[352215687,1739002245238,-2721.28,0.00011369,2]
[352215688,1739002245247,-500.0,0.00011369,2]
[352215689,1739002245258,-1343.26,0.00011369,2]
[352215690,1739002245268,-500.0,0.00011369,2]
[352215691,1739002245414,-500.0,0.00011369,2]
[352215692,1739002245424,-941.48,0.00011369,2]
[352215693,1739002245434,-636.83,0.00011369,2]
[352215694,1739002245444,-500.0,0.00011369,2]
[352215695,1739002245455,-500.0,0.00011369,2]
[352215696,1739002245464,-500.0,0.00011369,2]
[352215697,1739002245474,-500.0,0.00011369,2]
[352215698,1739002245484,-500.0,0.00011369,2]
[352215699,1739002245496,-500.0,0.00011369,2]
[352215700,1739002245506,-861.13,0.00011369,2]
[352215701,1739002245516,-940.08,0.00011369,2]
[352215702,1739002245526,-2160.96,0.00011369,2]
[352215703,1739002245535,-500.0,0.00011369,2]
[352215704,1739002245545,-553.82891968,0.00011369,2]
[352215705,1739002245555,-503.04869376,0.00011369,2]
[352215706,1739002245565,-500.0,0.00011369,2]
[352215707,1739002245575,-1257.1,0.00011369,2]
[352215708,1739002245585,-1326.92,0.00011369,2]
[352215709,1739002245594,-36551.32,0.00011369,2]
[352215710,1739002245604,-500.0,0.00011369,2]
[352215711,1739002245613,-10819.44,0.00011369,2]
[352215712,1739002245623,-1216.12,0.00011369,2]
[352215713,1739002245632,-500.0,0.00011369,2]
[352215714,1739002245643,-500.0,0.00011369,2]
[352215715,1739002245653,-1004.16,0.00011369,2]
[352215716,1739002245663,-500.0,0.00011369,2]
[352215717,1739002245675,-500.0,0.00011369,2]
[352215718,1739002245695,-500.0,0.00011369,2]
[352215719,1739002245709,-5269.89,0.00011369,2]
[352215720,1739002245718,-2264.18,0.00011369,2]
[352215721,1739002245728,-797.18,0.00011369,2]
[352215722,1739002245739,-500.0,0.00011369,2]
[352215723,1739002245748,-1712.87,0.00011369,2]
[352215724,1739002245759,-500.0,0.00011369,2]
[352215725,1739002245770,-500.0,0.00011369,2]
[352215726,1739002245780,-563.17,0.00011369,2]
[352215727,1739002245791,-971.61,0.00011369,2]
[352215728,1739002245801,-227.60640928,0.00011369,2]
[352215729,1739002245811,-1593.28,0.00011369,2]
[352215730,1739002245822,-2771.28,0.00011369,2]
[352215731,1739002245831,-990.07,0.00011369,2]
[352215732,1739002245841,-500.0,0.00011369,2]
[352215733,1739002245851,-500.0,0.00011369,2]
[352215734,1739002245860,-500.0,0.00011369,2]
[352215735,1739002245870,-500.0,0.00011369,2]
[352215736,1739002245879,-1060.19,0.00011369,2]
[352215737,1739002245889,-641.36,0.00011369,2]
[352215738,1739002245899,-500.0,0.00011369,2]
[352215739,1739002245908,-1133.34,0.00011369,2]
[352215740,1739002245918,-584.28,0.00011369,2]
[352215741,1739002245927,-500.0,0.00011369,2]
[352215742,1739002245937,-2995.22,0.00011369,2]
[352215743,1739002245947,-500.0,0.00011369,2]
[352215744,1739002245958,-500.0,0.00011369,2]
[352215745,1739002245968,-500.0,0.00011369,2]
[352215746,1739002245979,-2177.95,0.00011369,2]
[352215747,1739002245988,-1209.83,0.00011369,2]
[352215748,1739002245998,-528.58042909,0.00011369,2]
[352215749,1739002246008,-500.0,0.00011369,2]
[352215750,1739002246018,-189.63292773,0.00011369,2]
[352215752,1739002246029,-2956.32,0.00011369,2]
[352215753,1739002246039,-298.92500528,0.00011369,2]
[352215754,1739002246049,-500.0,0.00011369,2]
[352215755,1739002246059,-1056.59,0.00011369,2]
[352215756,1739002246069,-500.0,0.00011369,2]
[352215757,1739002246079,-504.76,0.00011369,2]
[352215758,1739002246088,-500.0,0.00011369,2]
[352215759,1739002246098,-500.0,0.00011369,2]
[352215760,1739002246107,-554.8,0.00011369,2]
[352215761,1739002246117,-1012.06,0.00011369,2]
[352215762,1739002246126,-500.0,0.00011369,2]
[352215763,1739002246135,-500.0,0.00011369,2]
[352215764,1739002246146,-108738.69544481,0.00011504,5]
[352215765,1739002246155,-579518.99367556,0.00011504,5]
[352215777,1739002246314,-3139.9,0.00011504,5]
[352215778,1739002246559,-500.0,0.00011369,2]
[352215779,1739002246568,-500.0,0.00011369,2]
[352215780,1739002246580,-758.15974404,0.00011504,5]
[352215781,1739002246610,-852.60449556,0.00011504,5]
[352215782,1739002246622,-318.63610174,0.00011504,5]
[352215784,1739002246883,-500.0,0.00010958,2]
[352215785,1739002246893,-500.0,0.00011095,2]
[352215786,1739002246903,-500.0,0.00011232,2]
[352215787,1739002246913,-239.26615875,0.00011504,5]
[352215788,1739002246927,-7461.05671462,0.00011504,5]
[352215789,1739002246939,-6261.28170294,0.00011504,5]
[352215791,1739002246952,-14982.98218888,0.00011504,5]
[352215798,1739002247030,-500.0,0.00010958,2]
[352215799,1739002247038,-1429.8,0.00011504,5]
[352215800,1739002247047,-39500.64180796,0.00011504,5]
[352215801,1739002247057,-1197.26778314,0.00011504,5]
[352215802,1739002247067,-605.0,0.00011504,5]
[352215803,1739002247078,-9999.99999999,0.00011504,5]
[352215804,1739002247086,-10457.8704635,0.00011504,5]
[352215805,1739002247094,-394.0,0.00011504,5]
[352215845,1739003431863,-172.297884,0.00010858,2]
[352215847,1739003431873,-301.44508107,0.00010951,2]
[352215848,1739003431882,-300.0,0.00010957,2]
[352215849,1739003431891,-500.0,0.00010957,2]
[352215851,1739003431901,-330.42042549,0.00010957,2]
[352215853,1739003431910,-500.0,0.00010957,2]
[352215854,1739003431919,-22.67330822,0.00010957,2]
[352215856,1739003431941,-477.32669178,0.00010957,2]
[352215857,1739003431950,-500.0,0.00010957,2]
[352215859,1739003431960,-500.0,0.00010957,2]
[352215860,1739003431970,-273.4311227,0.00010957,2]
[352215861,1739003431982,-226.5688773,0.00010957,2]
[352215862,1739003431991,-500.0,0.00010957,2]
[352215863,1739003432000,-500.0,0.00010957,2]
[352215864,1739003432010,-500.0,0.00010957,2]
[352215865,1739003432019,-500.0,0.00010957,2]
[352215866,1739003432029,-500.0,0.00010957,2]
[352215868,1739003432038,-500.0,0.00010957,2]
[352215870,1739003432048,-320.09869839,0.00010957,2]
[352215871,1739003432061,-179.90130161,0.00010957,2]
[352215872,1739003432071,-288.13869839,0.00010957,2]
[352215873,1739003432088,-211.86130161,0.00010957,2]
[352215874,1739003432098,-500.0,0.00010957,2]
[352215875,1739003432107,-500.0,0.00010957,2]
[352215876,1739003432116,-500.0,0.00010957,2]
[352215877,1739003432126,-500.0,0.00010957,2]
[352215878,1739003432136,-500.0,0.00010957,2]
[352215879,1739003432145,-500.0,0.00010957,2]
[352215880,1739003432155,-500.0,0.00010957,2]
[352215881,1739003432164,-500.0,0.00010957,2]
[352215882,1739003432173,-500.0,0.00010957,2]
[352215883,1739003432183,-500.0,0.00010957,2]
[352215884,1739003432192,-500.0,0.00010957,2]
[352215885,1739003432202,-500.0,0.00010957,2]
[352215886,1739003432211,-500.0,0.00010957,2]
[352215887,1739003432221,-500.0,0.00010957,2]
[352215888,1739003432230,-500.0,0.00010957,2]
[352215889,1739003432239,-500.0,0.00010957,2]
[352215890,1739003432248,-500.0,0.00010957,2]
[352215891,1739003432258,-458.5553546,0.00010957,2]
[352215892,1739003432267,-500.0,0.00010957,2]
[352215893,1739003432277,-500.0,0.00010957,2]
[352215894,1739003432286,-500.0,0.00010957,2]
[352215895,1739003432295,-500.0,0.00010957,2]
[352215896,1739003432305,-500.0,0.00010957,2]
[352215897,1739003432314,-500.0,0.00010957,2]
[352215898,1739003432324,-500.0,0.00010957,2]
[352215899,1739003432333,-500.0,0.00010957,2]
[352215900,1739003432343,-500.0,0.00010957,2]
[352215901,1739003432353,-500.0,0.00010957,2]
[352215902,1739003432362,-500.0,0.00010957,2]
[352215903,1739003432372,-500.0,0.00010957,2]
[352215904,1739003432381,-500.0,0.00010957,2]
[352215905,1739003432390,-500.0,0.00010957,2]
[352215906,1739003432400,-500.0,0.00010957,2]
[352215907,1739003432410,-500.0,0.00010957,2]
[352215908,1739003432420,-500.0,0.00010957,2]
[352215909,1739003432429,-500.0,0.00010957,2]
[352215910,1739003432439,-500.0,0.00010957,2]
[352215911,1739003432448,-500.0,0.00010957,2]
[352215912,1739003432458,-500.0,0.00010957,2]
[352215913,1739003432467,-500.0,0.00010957,2]
[352215914,1739003432477,-500.0,0.00010957,2]
[352215915,1739003432487,-500.0,0.00010957,2]
[352215916,1739003432496,-500.0,0.00010957,2]
[352215917,1739003432505,-500.0,0.00010957,2]
[352215918,1739003432515,-500.0,0.00010957,2]
[352215919,1739003432524,-500.0,0.00010957,2]
[352215920,1739003432534,-500.0,0.00010957,2]
[352215921,1739003432543,-500.0,0.00010957,2]
[352215922,1739003432552,-345.85553546,0.00010957,2]
[352215923,1739003432561,-500.0,0.00010957,2]
[352215924,1739003432570,-500.0,0.00010957,2]
[352215925,1739003432580,-500.0,0.00010957,2]
[352215926,1739003432590,-500.0,0.00010957,2]
[352215927,1739003432599,-500.0,0.00010957,2]
[352215928,1739003432609,-500.0,0.00010957,2]
[352215929,1739003432618,-500.0,0.00010957,2]
[352215930,1739003432628,-500.0,0.00010957,2]
[352215931,1739003432637,-500.0,0.00010957,2]
[352215932,1739003432646,-500.0,0.00010957,2]
[352215933,1739003432656,-500.0,0.00010957,2]
[352215934,1739003432666,-500.0,0.00010957,2]
[352215935,1739003432676,-500.0,0.00010957,2]
[352215936,1739003432686,-500.0,0.00010957,2]
[352215937,1739003432695,-500.0,0.00010957,2]
[352215938,1739003432704,-500.0,0.00010957,2]
[352215939,1739003432714,-500.40252414,0.00010958,2]
[352215940,1739003432724,-299.46367127,0.00010958,2]
[352215941,1739003432733,-500.0,0.00010958,2]
[352215942,1739003432743,-500.0,0.00010958,2]
[352215943,1739003432752,-504.33723415,0.00010958,2]
[352215944,1739003432762,-500.0,0.00010958,2]
[352215945,1739003432772,-500.0,0.00010958,2]
[352215946,1739003432781,-500.0,0.00010958,2]
[352215947,1739003432791,-500.0,0.00010958,2]
[352215948,1739003432800,-500.81502653,0.00010958,2]
[352215949,1739003432810,-500.0,0.00010958,2]